[Event "Titled Tuesday Blitz January 03 Early 2023"]
[White "Rostomyan, Mikayel"]
[Black "Babazada, Khazar"]
[WhiteFideId "13313754"]
[BlackFideId "13413554"]
[WhiteElo "2222"]
[BlackElo "2474"]
[Result "1-0"]
[Round "05"]
[TimeControl "180+2"]
[Date "2023.01.03"]
[WhiteClock "0:00:36"]
[BlackClock "0:00:21"]

1. d4 {[%clk 0:03:00]}  Nf6 {[%clk 0:02:40]} 2. Nf3 {[%clk 0:03:00]}  g6 {[%clk 0:02:37]} 3. b3 {[%clk 0:02:57]}  Bg7 {[%clk 0:02:37]} 4. Bb2 {[%clk 0:02:57]}  O-O {[%clk 0:02:37]} 5. e3 {[%clk 0:02:58]}  b6 {[%clk 0:02:34]} 6. Be2 {[%clk 0:02:58]}  Bb7 {[%clk 0:02:35]} 7. O-O {[%clk 0:02:59]}  d6 {[%clk 0:02:35]} 8. c4 {[%clk 0:02:59]}  Nbd7 {[%clk 0:02:36]} 9. Nc3 {[%clk 0:03:00]}  Ne4 {[%clk 0:02:36]} 10. a4 {[%clk 0:02:59]}  a5 {[%clk 0:02:35]} 11. Qc2 {[%clk 0:02:57]}  Nxc3 {[%clk 0:02:34]} 12. Bxc3 {[%clk 0:02:58]}  e5 {[%clk 0:02:34]} 13. dxe5 {[%clk 0:02:55]}  dxe5 {[%clk 0:02:35]} 14. Rad1 {[%clk 0:02:54]}  Qe7 {[%clk 0:02:34]} 15. Qb2 {[%clk 0:02:51]}  Rfd8 {[%clk 0:02:30]} 16. Rd2 {[%clk 0:02:45]}  f6 {[%clk 0:01:43]} 17. Rfd1 {[%clk 0:02:20]}  Nc5 {[%clk 0:01:41]} 18. Ne1 {[%clk 0:02:09]}  Rxd2 {[%clk 0:01:40]} 19. Rxd2 {[%clk 0:02:02]}  Rd8 {[%clk 0:01:40]} 20. Bf3 {[%clk 0:01:59]}  e4 {[%clk 0:01:34]} 21. Be2 {[%clk 0:01:55]}  Rxd2 {[%clk 0:01:33]} 22. Bxd2 {[%clk 0:01:56]}  f5 {[%clk 0:01:33]} 23. Bc3 {[%clk 0:01:54]}  Bxc3 {[%clk 0:01:33]} 24. Qxc3 {[%clk 0:01:55]}  Qg7 {[%clk 0:01:30]} 25. Qxg7+ {[%clk 0:01:49]}  Kxg7 {[%clk 0:01:31]} 26. Bd1 {[%clk 0:01:49]}  Kf6 {[%clk 0:01:18]} 27. Kf1 {[%clk 0:01:49]}  c6 {[%clk 0:01:02]} 28. Ke2 {[%clk 0:01:45]}  b5 {[%clk 0:01:03]} 29. cxb5 {[%clk 0:01:37]}  cxb5 {[%clk 0:01:04]} 30. axb5 {[%clk 0:01:30]}  Bd5 {[%clk 0:01:04]} 31. Kd2 {[%clk 0:01:28]}  Bxb3 {[%clk 0:00:47]} 32. Bxb3 {[%clk 0:01:23]}  Nxb3+ {[%clk 0:00:48]} 33. Kc3 {[%clk 0:01:24]}  Nc5 {[%clk 0:00:48]} 34. Kc4 {[%clk 0:01:22]}  Nb7 {[%clk 0:00:46]} 35. Kd5 {[%clk 0:01:06]}  Ke7 {[%clk 0:00:46]} 36. Kc6 {[%clk 0:01:02]}  Nd8+ {[%clk 0:00:46]} 37. Kc7 {[%clk 0:00:58]}  Ne6+ {[%clk 0:00:47]} 38. Kc8 {[%clk 0:00:50]}  a4 {[%clk 0:00:36]} 39. b6 {[%clk 0:00:46]}  Nc5 {[%clk 0:00:33]} 40. b7 {[%clk 0:00:44]}  Na6 {[%clk 0:00:33]} 41. Nc2 {[%clk 0:00:39]}  Ke6 {[%clk 0:00:21]} 42. Nb4 {[%clk 0:00:38]}  a3 {[%clk 0:00:21]} 43. Nxa6 {[%clk 0:00:35]}  a2 {[%clk 0:00:21]} 44. Nc5+ {[%clk 0:00:36]} 1-0


[Site "https://www.chess.com"]

[Event "Titled Tuesday Blitz January 03 Early 2023"]
[White "Martynov, Pavel"]
[Black "Sethuraman, S.P."]
[WhiteFideId "4101260"]
[BlackFideId "5021596"]
[WhiteElo "2414"]
[BlackElo "2626"]
[Result "0-1"]
[Round "05"]
[TimeControl "180+2"]
[Date "2023.01.03"]
[WhiteClock "0:00:01"]
[BlackClock "0:00:07"]

1. e4 {[%clk 0:03:00]}  c5 {[%clk 0:02:59]} 2. Nf3 {[%clk 0:03:00]}  Nc6 {[%clk 0:03:00]} 3. Bb5 {[%clk 0:03:00]}  g6 {[%clk 0:02:59]} 4. O-O {[%clk 0:02:56]}  Bg7 {[%clk 0:02:59]} 5. c3 {[%clk 0:02:57]}  Nf6 {[%clk 0:02:56]} 6. Re1 {[%clk 0:02:57]}  Qb6 {[%clk 0:02:48]} 7. Na3 {[%clk 0:02:55]}  O-O {[%clk 0:02:45]} 8. h3 {[%clk 0:02:54]}  d5 {[%clk 0:02:32]} 9. e5 {[%clk 0:02:16]}  Ne8 {[%clk 0:02:32]} 10. d4 {[%clk 0:02:11]}  cxd4 {[%clk 0:02:31]} 11. cxd4 {[%clk 0:02:12]}  Nc7 {[%clk 0:02:32]} 12. Bf1 {[%clk 0:02:07]}  Bf5 {[%clk 0:02:15]} 13. Nc2 {[%clk 0:01:54]}  Ne6 {[%clk 0:02:11]} 14. Be3 {[%clk 0:01:39]}  Qxb2 {[%clk 0:02:06]} 15. Bd3 {[%clk 0:01:38]}  Bxd3 {[%clk 0:02:04]} 16. Qxd3 {[%clk 0:01:39]}  Qb6 {[%clk 0:01:59]} 17. Reb1 {[%clk 0:01:35]}  Qc7 {[%clk 0:01:59]} 18. a4 {[%clk 0:01:33]}  Rac8 {[%clk 0:01:59]} 19. Nb4 {[%clk 0:01:30]}  Nxb4 {[%clk 0:01:58]} 20. Rxb4 {[%clk 0:01:30]}  Nd8 {[%clk 0:01:53]} 21. Rab1 {[%clk 0:01:16]}  b6 {[%clk 0:01:24]} 22. Qd2 {[%clk 0:01:10]}  Nc6 {[%clk 0:01:23]} 23. Rb5 {[%clk 0:01:08]}  Qd7 {[%clk 0:01:23]} 24. Bh6 {[%clk 0:01:05]}  Rfd8 {[%clk 0:01:18]} 25. g4 {[%clk 0:00:45]}  Na5 {[%clk 0:01:04]} 26. Qg5 {[%clk 0:00:38]}  Rc3 {[%clk 0:01:00]} 27. Bxg7 {[%clk 0:00:27]}  Kxg7 {[%clk 0:00:59]} 28. Nh4 {[%clk 0:00:27]}  Kh8 {[%clk 0:00:47]} 29. Kg2 {[%clk 0:00:24]}  Nc6 {[%clk 0:00:41]} 30. Qd2 {[%clk 0:00:19]}  Rc4 {[%clk 0:00:39]} 31. Nf3 {[%clk 0:00:20]}  Rxa4 {[%clk 0:00:39]} 32. Qf4 {[%clk 0:00:19]}  Kg8 {[%clk 0:00:36]} 33. Ng5 {[%clk 0:00:19]}  Qe8 {[%clk 0:00:30]} 34. e6 {[%clk 0:00:16]}  f6 {[%clk 0:00:25]} 35. Nf7 {[%clk 0:00:16]}  Rc8 {[%clk 0:00:23]} 36. Rxd5 {[%clk 0:00:15]}  Nd8 {[%clk 0:00:16]} 37. Nh6+ {[%clk 0:00:11]}  Kg7 {[%clk 0:00:16]} 38. Re1 {[%clk 0:00:11]}  Qc6 {[%clk 0:00:15]} 39. Nf5+ {[%clk 0:00:04]}  gxf5 {[%clk 0:00:14]} 40. Qf3 {[%clk 0:00:05]}  Nxe6 {[%clk 0:00:11]} 41. gxf5 {[%clk 0:00:03]}  Ng5 {[%clk 0:00:08]} 42. Rxe7+ {[%clk 0:00:03]}  Kf8 {[%clk 0:00:08]} 43. Rdd7 {[%clk 0:00:01]}  Qxf3+ {[%clk 0:00:07]} 44. Kh2 {[%clk 0:00:01]}  Qxf2+ {[%clk 0:00:07]} 45. Kh1 {[%clk 0:00:01]}  Rc1+ {[%clk 0:00:07]} 0-1


[Site "https://www.chess.com"]

[Event "Titled Tuesday Blitz January 03 Early 2023"]
[White "Khumalo, Keith"]
[Black "Harsha Bharathakoti"]
[WhiteFideId "14319470"]
[BlackFideId "5078776"]
[WhiteElo "2099"]
[BlackElo "2602"]
[Result "1-0"]
[Round "05"]
[TimeControl "180+2"]
[Date "2023.01.03"]
[WhiteClock "0:01:22"]
[BlackClock "0:00:20"]

1. d4 {[%clk 0:02:53]}  Nf6 {[%clk 0:02:49]} 2. c4 {[%clk 0:02:53]}  c5 {[%clk 0:02:50]} 3. d5 {[%clk 0:02:53]}  g6 {[%clk 0:02:49]} 4. Nc3 {[%clk 0:02:53]}  Bg7 {[%clk 0:02:49]} 5. Nf3 {[%clk 0:02:51]}  d6 {[%clk 0:02:48]} 6. h3 {[%clk 0:02:51]}  O-O {[%clk 0:02:48]} 7. Bf4 {[%clk 0:02:52]}  Re8 {[%clk 0:02:42]} 8. e3 {[%clk 0:02:52]}  Na6 {[%clk 0:02:25]} 9. Be2 {[%clk 0:02:50]}  Nc7 {[%clk 0:02:25]} 10. O-O {[%clk 0:02:48]}  a6 {[%clk 0:02:19]} 11. a4 {[%clk 0:02:47]}  Rb8 {[%clk 0:02:14]} 12. e4 {[%clk 0:02:44]}  Nh5 {[%clk 0:01:55]} 13. Bg5 {[%clk 0:02:43]}  h6 {[%clk 0:01:54]} 14. Be3 {[%clk 0:02:43]}  e5 {[%clk 0:01:50]} 15. dxe6 {[%clk 0:02:40]}  Nxe6 {[%clk 0:01:47]} 16. Qd2 {[%clk 0:02:39]}  Kh7 {[%clk 0:01:33]} 17. Rfd1 {[%clk 0:02:38]}  Bf8 {[%clk 0:01:21]} 18. g4 {[%clk 0:02:15]}  Nf6 {[%clk 0:01:21]} 19. e5 {[%clk 0:02:11]}  dxe5 {[%clk 0:01:18]} 20. Qxd8 {[%clk 0:02:06]}  Nxd8 {[%clk 0:01:19]} 21. Nxe5 {[%clk 0:02:03]}  Be6 {[%clk 0:00:59]} 22. b3 {[%clk 0:01:48]}  Nc6 {[%clk 0:00:59]} 23. Nxc6 {[%clk 0:01:36]}  bxc6 {[%clk 0:00:59]} 24. Rab1 {[%clk 0:01:36]}  Nd7 {[%clk 0:00:56]} 25. Ne4 {[%clk 0:01:32]}  f5 {[%clk 0:00:26]} 26. Rxd7+ {[%clk 0:01:31]}  Bxd7 {[%clk 0:00:24]} 27. Nf6+ {[%clk 0:01:31]}  Kg7 {[%clk 0:00:19]} 28. Nxd7 {[%clk 0:01:31]}  Rb7 {[%clk 0:00:17]} 29. Nxf8 {[%clk 0:01:31]}  Rxf8 {[%clk 0:00:17]} 30. Bxc5 {[%clk 0:01:30]}  Re8 {[%clk 0:00:18]} 31. Bf3 {[%clk 0:01:29]}  Re6 {[%clk 0:00:19]} 32. gxf5 {[%clk 0:01:29]}  gxf5 {[%clk 0:00:20]} 33. b4 {[%clk 0:01:26]}  Kg6 {[%clk 0:00:18]} 34. b5 {[%clk 0:01:26]}  axb5 {[%clk 0:00:19]} 35. axb5 {[%clk 0:01:26]}  Rb8 {[%clk 0:00:20]} 36. b6 {[%clk 0:01:22]} 1-0


[Site "https://www.chess.com"]

[Event "Titled Tuesday Blitz January 03 Early 2023"]
[White "Sanal, Vahap"]
[Black "Freitag, Manfred"]
[WhiteFideId "6300545"]
[BlackFideId "1602004"]
[WhiteElo "2600"]
[BlackElo "2352"]
[Result "1-0"]
[Round "05"]
[TimeControl "180+2"]
[Date "2023.01.03"]
[WhiteClock "0:00:34"]
[BlackClock "0:00:04"]

1. e4 {[%clk 0:03:00]}  c5 {[%clk 0:01:48]} 2. Nf3 {[%clk 0:02:58]}  d6 {[%clk 0:01:48]} 3. d4 {[%clk 0:02:57]}  cxd4 {[%clk 0:01:49]} 4. Nxd4 {[%clk 0:02:58]}  Nf6 {[%clk 0:01:49]} 5. Nc3 {[%clk 0:02:58]}  a6 {[%clk 0:01:50]} 6. a3 {[%clk 0:02:58]}  g6 {[%clk 0:01:49]} 7. f3 {[%clk 0:02:58]}  Bg7 {[%clk 0:01:50]} 8. Be3 {[%clk 0:02:58]}  O-O {[%clk 0:01:50]} 9. Qd2 {[%clk 0:02:59]}  Nc6 {[%clk 0:01:51]} 10. O-O-O {[%clk 0:02:57]}  Bd7 {[%clk 0:01:51]} 11. g4 {[%clk 0:02:55]}  Rc8 {[%clk 0:01:50]} 12. h4 {[%clk 0:02:55]}  h5 {[%clk 0:01:46]} 13. g5 {[%clk 0:02:47]}  Ne8 {[%clk 0:01:46]} 14. Kb1 {[%clk 0:02:46]}  Nc7 {[%clk 0:01:44]} 15. f4 {[%clk 0:02:41]}  Nxd4 {[%clk 0:01:30]} 16. Bxd4 {[%clk 0:02:40]}  Bxd4 {[%clk 0:01:31]} 17. Qxd4 {[%clk 0:02:39]}  Bc6 {[%clk 0:01:23]} 18. Rg1 {[%clk 0:02:20]}  e5 {[%clk 0:01:19]} 19. fxe5 {[%clk 0:02:15]}  dxe5 {[%clk 0:01:19]} 20. Qxe5 {[%clk 0:02:16]}  Qe8 {[%clk 0:01:20]} 21. Qf6 {[%clk 0:02:13]}  Qe6 {[%clk 0:01:15]} 22. Qxe6 {[%clk 0:01:58]}  Nxe6 {[%clk 0:01:14]} 23. Bh3 {[%clk 0:01:57]}  Rce8 {[%clk 0:01:10]} 24. Rgf1 {[%clk 0:01:53]}  Nc5 {[%clk 0:01:10]} 25. Rf4 {[%clk 0:01:42]}  Nxe4 {[%clk 0:01:10]} 26. Nxe4 {[%clk 0:01:42]}  Bxe4 {[%clk 0:01:05]} 27. b4 {[%clk 0:01:35]}  Bc6 {[%clk 0:01:02]} 28. Bf1 {[%clk 0:01:32]}  Re4 {[%clk 0:00:57]} 29. Rxe4 {[%clk 0:01:32]}  Bxe4 {[%clk 0:00:57]} 30. Bc4 {[%clk 0:01:32]}  Rc8 {[%clk 0:00:48]} 31. Bb3 {[%clk 0:01:32]}  Rc7 {[%clk 0:00:49]} 32. Rd8+ {[%clk 0:01:30]}  Kg7 {[%clk 0:00:49]} 33. Kb2 {[%clk 0:01:30]}  Re7 {[%clk 0:00:41]} 34. c4 {[%clk 0:01:28]}  Bf5 {[%clk 0:00:35]} 35. c5 {[%clk 0:01:21]}  Re2+ {[%clk 0:00:32]} 36. Kc1 {[%clk 0:01:21]}  Re3 {[%clk 0:00:31]} 37. Bd5 {[%clk 0:01:17]}  Rxa3 {[%clk 0:00:25]} 38. Bxb7 {[%clk 0:01:17]}  a5 {[%clk 0:00:22]} 39. bxa5 {[%clk 0:01:13]}  Rxa5 {[%clk 0:00:21]} 40. c6 {[%clk 0:01:14]}  Be4 {[%clk 0:00:19]} 41. Kd2 {[%clk 0:01:10]}  Rc5 {[%clk 0:00:19]} 42. Rd6 {[%clk 0:01:06]}  Kf8 {[%clk 0:00:18]} 43. Ke3 {[%clk 0:01:06]}  Bg2 {[%clk 0:00:18]} 44. Kd4 {[%clk 0:01:07]}  Rc1 {[%clk 0:00:18]} 45. Ke5 {[%clk 0:01:00]}  Ke7 {[%clk 0:00:18]} 46. Rd7+ {[%clk 0:01:00]}  Ke8 {[%clk 0:00:19]} 47. Kd6 {[%clk 0:00:57]}  Bh3 {[%clk 0:00:16]} 48. Re7+ {[%clk 0:00:55]}  Kf8 {[%clk 0:00:16]} 49. Re3 {[%clk 0:00:55]}  Bg2 {[%clk 0:00:16]} 50. Kc7 {[%clk 0:00:54]}  Rb1 {[%clk 0:00:15]} 51. Re2 {[%clk 0:00:53]}  Bf3 {[%clk 0:00:14]} 52. Rf2 {[%clk 0:00:53]}  Bh1 {[%clk 0:00:13]} 53. Rf4 {[%clk 0:00:50]}  Ke7 {[%clk 0:00:12]} 54. Bc8 {[%clk 0:00:48]}  Bxc6 {[%clk 0:00:09]} 55. Kxc6 {[%clk 0:00:47]}  Rc1+ {[%clk 0:00:09]} 56. Kb7 {[%clk 0:00:48]}  Rb1+ {[%clk 0:00:09]} 57. Ka7 {[%clk 0:00:48]}  Ra1+ {[%clk 0:00:10]} 58. Kb6 {[%clk 0:00:49]}  Rb1+ {[%clk 0:00:10]} 59. Ka5 {[%clk 0:00:45]}  Ra1+ {[%clk 0:00:05]} 60. Kb4 {[%clk 0:00:45]}  Rb1+ {[%clk 0:00:05]} 61. Ka3 {[%clk 0:00:45]}  Rc1 {[%clk 0:00:04]} 62. Bb7 {[%clk 0:00:44]}  Rc7 {[%clk 0:00:04]} 63. Bd5 {[%clk 0:00:44]}  Kf8 {[%clk 0:00:04]} 64. Kb4 {[%clk 0:00:44]}  Kg7 {[%clk 0:00:04]} 65. Rf6 {[%clk 0:00:40]}  Rd7 {[%clk 0:00:02]} 66. Kc5 {[%clk 0:00:40]}  Re7 {[%clk 0:00:02]} 67. Kd6 {[%clk 0:00:39]}  Ra7 {[%clk 0:00:03]} 68. Rxf7+ {[%clk 0:00:30]}  Rxf7 {[%clk 0:00:03]} 69. Bxf7 {[%clk 0:00:31]}  Kxf7 {[%clk 0:00:04]} 70. Kd7 {[%clk 0:00:32]}  Kf8 {[%clk 0:00:03]} 71. Ke6 {[%clk 0:00:32]}  Kg8 {[%clk 0:00:03]} 72. Kf6 {[%clk 0:00:32]}  Kh7 {[%clk 0:00:03]} 73. Kf7 {[%clk 0:00:32]}  Kh8 {[%clk 0:00:03]} 74. Kxg6 {[%clk 0:00:33]}  Kg8 {[%clk 0:00:04]} 75. Kxh5 {[%clk 0:00:34]} 1-0


[Site "https://www.chess.com"]

[Event "Titled Tuesday Blitz January 03 Early 2023"]
[White "Gunina, Valentina"]
[Black "Ingebretsen, Jens E"]
[WhiteFideId "4167570"]
[BlackFideId "1522965"]
[WhiteElo "2469"]
[BlackElo "2342"]
[Result "1-0"]
[Round "05"]
[TimeControl "180+2"]
[Date "2023.01.03"]
[WhiteClock "0:00:06"]
[BlackClock "0:00:10"]

1. d4 {[%clk 0:02:53]}  Nf6 {[%clk 0:02:59]} 2. c4 {[%clk 0:02:53]}  e6 {[%clk 0:02:59]} 3. Nf3 {[%clk 0:02:53]}  d5 {[%clk 0:03:00]} 4. Nc3 {[%clk 0:02:52]}  c6 {[%clk 0:03:00]} 5. e3 {[%clk 0:02:51]}  Nbd7 {[%clk 0:03:01]} 6. Be2 {[%clk 0:02:51]}  Bd6 {[%clk 0:02:59]} 7. O-O {[%clk 0:02:51]}  O-O {[%clk 0:03:00]} 8. b3 {[%clk 0:02:52]}  b6 {[%clk 0:03:00]} 9. Bb2 {[%clk 0:02:52]}  Bb7 {[%clk 0:03:01]} 10. Bd3 {[%clk 0:02:53]}  Rc8 {[%clk 0:03:01]} 11. Re1 {[%clk 0:02:53]}  Re8 {[%clk 0:03:01]} 12. h3 {[%clk 0:02:48]}  e5 {[%clk 0:03:00]} 13. dxe5 {[%clk 0:02:48]}  Nxe5 {[%clk 0:03:00]} 14. cxd5 {[%clk 0:02:49]}  Nxd3 {[%clk 0:02:26]} 15. Qxd3 {[%clk 0:02:48]}  cxd5 {[%clk 0:02:27]} 16. Nb5 {[%clk 0:02:48]}  Bb8 {[%clk 0:02:24]} 17. Rac1 {[%clk 0:02:44]}  Rxc1 {[%clk 0:02:21]} 18. Rxc1 {[%clk 0:02:43]}  Ba6 {[%clk 0:02:20]} 19. Nfd4 {[%clk 0:02:42]}  Qd7 {[%clk 0:02:05]} 20. Nc6 {[%clk 0:02:35]}  Rc8 {[%clk 0:01:39]} 21. Nxb8 {[%clk 0:02:13]}  Rxc1+ {[%clk 0:01:18]} 22. Bxc1 {[%clk 0:02:14]}  Qxb5 {[%clk 0:01:19]} 23. Qc2 {[%clk 0:02:14]}  Qf1+ {[%clk 0:00:36]} 24. Kh2 {[%clk 0:02:14]}  Qd3 {[%clk 0:00:37]} 25. Qc7 {[%clk 0:02:10]}  Bb5 {[%clk 0:00:38]} 26. Qxa7 {[%clk 0:02:06]}  Qc2 {[%clk 0:00:34]} 27. Qxb6 {[%clk 0:02:04]}  Be8 {[%clk 0:00:33]} 28. Ba3 {[%clk 0:01:51]}  Qxf2 {[%clk 0:00:33]} 29. Be7 {[%clk 0:01:47]}  Ne4 {[%clk 0:00:29]} 30. Qc7 {[%clk 0:01:09]}  Nd2 {[%clk 0:00:29]} 31. h4 {[%clk 0:00:50]}  Nf1+ {[%clk 0:00:18]} 32. Kh3 {[%clk 0:00:50]}  Qxe3+ {[%clk 0:00:18]} 33. g3 {[%clk 0:00:48]}  Qe4 {[%clk 0:00:12]} 34. Qf4 {[%clk 0:00:19]}  Qh1+ {[%clk 0:00:12]} 35. Kg4 {[%clk 0:00:18]}  Nh2+ {[%clk 0:00:10]} 36. Kf5 {[%clk 0:00:18]}  Qb1+ {[%clk 0:00:10]} 37. Ke5 {[%clk 0:00:18]}  f6+ {[%clk 0:00:08]} 38. Kd6 {[%clk 0:00:18]}  Qe4 {[%clk 0:00:06]} 39. Na6 {[%clk 0:00:11]}  Nf3 {[%clk 0:00:06]} 40. Nc5 {[%clk 0:00:11]}  Qxf4+ {[%clk 0:00:06]} 41. gxf4 {[%clk 0:00:11]}  d4 {[%clk 0:00:07]} 42. Kd5 {[%clk 0:00:09]}  Bg6 {[%clk 0:00:07]} 43. Kc4 {[%clk 0:00:07]}  Bf7+ {[%clk 0:00:04]} 44. Kb4 {[%clk 0:00:05]}  Ne1 {[%clk 0:00:04]} 45. a4 {[%clk 0:00:04]}  Nc2+ {[%clk 0:00:04]} 46. Kb5 {[%clk 0:00:03]}  Bxb3 {[%clk 0:00:02]} 47. Nxb3 {[%clk 0:00:02]}  d3 {[%clk 0:00:03]} 48. a5 {[%clk 0:00:03]}  Nd4+ {[%clk 0:00:02]} 49. Kc4 {[%clk 0:00:01]}  Nxb3 {[%clk 0:00:03]} 50. Kxb3 {[%clk 0:00:01]}  d2 {[%clk 0:00:03]} 51. Kc2 {[%clk 0:00:01]}  Kf7 {[%clk 0:00:04]} 52. Bc5 {[%clk 0:00:02]}  d1=Q+ {[%clk 0:00:05]} 53. Kxd1 {[%clk 0:00:02]}  Ke6 {[%clk 0:00:05]} 54. a6 {[%clk 0:00:03]}  Kd7 {[%clk 0:00:06]} 55. a7 {[%clk 0:00:03]}  Kc6 {[%clk 0:00:07]} 56. a8=Q+ {[%clk 0:00:03]}  Kxc5 {[%clk 0:00:08]} 57. Qa7+ {[%clk 0:00:04]}  Kd5 {[%clk 0:00:08]} 58. Qxg7 {[%clk 0:00:04]}  Ke6 {[%clk 0:00:09]} 59. Qxh7 {[%clk 0:00:05]}  f5 {[%clk 0:00:09]} 60. Qg6+ {[%clk 0:00:05]}  Ke7 {[%clk 0:00:10]} 61. Qxf5 {[%clk 0:00:06]} 1-0


[Site "https://www.chess.com"]

[Event "Titled Tuesday Blitz January 03 Early 2023"]
[White "Atanasov, Anthony"]
[Black "Tactrics"]
[WhiteFideId "2623897"]
[WhiteElo "2368"]
[BlackElo "2846"]
[Result "0-1"]
[Round "05"]
[TimeControl "180+2"]
[Date "2023.01.03"]
[WhiteClock "0:00:01"]
[BlackClock "0:00:44"]

1. d4 {[%clk 0:02:53]}  e6 {[%clk 0:03:00]} 2. Bf4 {[%clk 0:02:49]}  Nf6 {[%clk 0:02:59]} 3. e3 {[%clk 0:02:49]}  b6 {[%clk 0:02:59]} 4. Nf3 {[%clk 0:02:50]}  Bb7 {[%clk 0:02:59]} 5. Nbd2 {[%clk 0:02:51]}  c5 {[%clk 0:03:00]} 6. Nc4 {[%clk 0:02:51]}  cxd4 {[%clk 0:02:59]} 7. exd4 {[%clk 0:02:51]}  d6 {[%clk 0:02:59]} 8. c3 {[%clk 0:02:51]}  Be7 {[%clk 0:02:59]} 9. h3 {[%clk 0:02:52]}  O-O {[%clk 0:02:59]} 10. Be2 {[%clk 0:02:52]}  Qc7 {[%clk 0:02:59]} 11. a4 {[%clk 0:02:50]}  Nbd7 {[%clk 0:02:57]} 12. Ne3 {[%clk 0:02:49]}  Rfe8 {[%clk 0:02:55]} 13. O-O {[%clk 0:02:49]}  Bf8 {[%clk 0:02:54]} 14. Bh2 {[%clk 0:02:47]}  a6 {[%clk 0:02:55]} 15. Re1 {[%clk 0:02:44]}  g6 {[%clk 0:02:55]} 16. Qb3 {[%clk 0:02:42]}  Rac8 {[%clk 0:02:50]} 17. Rac1 {[%clk 0:02:36]}  Bh6 {[%clk 0:02:50]} 18. c4 {[%clk 0:02:30]}  Ne4 {[%clk 0:02:45]} 19. a5 {[%clk 0:02:15]}  bxa5 {[%clk 0:02:40]} 20. c5 {[%clk 0:02:15]}  e5 {[%clk 0:02:40]} 21. Bc4 {[%clk 0:02:03]}  exd4 {[%clk 0:02:10]} 22. cxd6 {[%clk 0:01:16]}  Qb6 {[%clk 0:01:41]} 23. Bxf7+ {[%clk 0:01:07]}  Kg7 {[%clk 0:01:41]} 24. Qxb6 {[%clk 0:00:27]}  Nxb6 {[%clk 0:01:41]} 25. Bxe8 {[%clk 0:00:27]}  dxe3 {[%clk 0:01:35]} 26. Kf1 {[%clk 0:00:03]}  exf2 {[%clk 0:01:05]} 27. Rxe4 {[%clk 0:00:01]}  Rxc1+ {[%clk 0:01:03]} 28. Ne1 {[%clk 0:00:02]}  Bxe4 {[%clk 0:00:44]} 29. d7 {[%clk 0:00:01]} 0-1


[Site "https://www.chess.com"]

[Event "Titled Tuesday Blitz January 03 Early 2023"]
[White "Bodnaruk, Anastasia"]
[Black "Bryakin, Mikhail"]
[WhiteFideId "4181751"]
[BlackFideId "4165314"]
[WhiteElo "2350"]
[BlackElo "2455"]
[Result "0-1"]
[Round "05"]
[TimeControl "180+2"]
[Date "2023.01.03"]
[WhiteClock "0:00:02"]
[BlackClock "0:00:51"]

1. e4 {[%clk 0:02:59]}  d5 {[%clk 0:03:00]} 2. exd5 {[%clk 0:02:59]}  Qxd5 {[%clk 0:03:01]} 3. Nc3 {[%clk 0:02:58]}  Qe5+ {[%clk 0:03:02]} 4. Be2 {[%clk 0:02:55]}  Bg4 {[%clk 0:03:02]} 5. d4 {[%clk 0:02:49]}  Bxe2 {[%clk 0:03:01]} 6. Ngxe2 {[%clk 0:02:49]}  Qa5 {[%clk 0:03:02]} 7. O-O {[%clk 0:02:48]}  Nf6 {[%clk 0:03:02]} 8. b4 {[%clk 0:02:47]}  Qh5 {[%clk 0:03:02]} 9. f3 {[%clk 0:02:27]}  Qf5 {[%clk 0:02:55]} 10. b5 {[%clk 0:02:19]}  g6 {[%clk 0:02:38]} 11. Ng3 {[%clk 0:02:12]}  Qd7 {[%clk 0:02:38]} 12. Be3 {[%clk 0:02:07]}  Nd5 {[%clk 0:02:36]} 13. Nxd5 {[%clk 0:02:05]}  Qxd5 {[%clk 0:02:37]} 14. Qe2 {[%clk 0:02:05]}  Bg7 {[%clk 0:02:26]} 15. c4 {[%clk 0:02:04]}  Qd7 {[%clk 0:02:26]} 16. d5 {[%clk 0:02:01]}  O-O {[%clk 0:02:24]} 17. Rad1 {[%clk 0:02:00]}  a6 {[%clk 0:02:23]} 18. b6 {[%clk 0:01:56]}  cxb6 {[%clk 0:02:14]} 19. Bxb6 {[%clk 0:01:55]}  Re8 {[%clk 0:02:14]} 20. Ne4 {[%clk 0:01:49]}  Qc8 {[%clk 0:02:03]} 21. Bd4 {[%clk 0:01:35]}  Nd7 {[%clk 0:01:59]} 22. Bxg7 {[%clk 0:01:31]}  Kxg7 {[%clk 0:02:00]} 23. Qb2+ {[%clk 0:01:31]}  Kg8 {[%clk 0:01:53]} 24. Qd4 {[%clk 0:01:31]}  Qc7 {[%clk 0:01:51]} 25. c5 {[%clk 0:01:28]}  Rac8 {[%clk 0:01:47]} 26. Rc1 {[%clk 0:01:28]}  Qe5 {[%clk 0:01:45]} 27. Qa4 {[%clk 0:01:15]}  Red8 {[%clk 0:01:35]} 28. Qb3 {[%clk 0:00:39]}  Nxc5 {[%clk 0:01:23]} 29. Nxc5 {[%clk 0:00:23]}  Rxc5 {[%clk 0:01:21]} 30. Rxc5 {[%clk 0:00:17]}  Qd4+ {[%clk 0:01:21]} 31. Kh1 {[%clk 0:00:17]}  Qxc5 {[%clk 0:01:21]} 32. Qxb7 {[%clk 0:00:18]}  Qb5 {[%clk 0:01:08]} 33. Qxb5 {[%clk 0:00:14]}  axb5 {[%clk 0:01:09]} 34. Rd1 {[%clk 0:00:12]}  Kf8 {[%clk 0:01:08]} 35. Kg1 {[%clk 0:00:12]}  e6 {[%clk 0:01:06]} 36. d6 {[%clk 0:00:11]}  Ke8 {[%clk 0:01:06]} 37. Kf2 {[%clk 0:00:08]}  Ra8 {[%clk 0:01:01]} 38. Rd2 {[%clk 0:00:08]}  Kd7 {[%clk 0:01:01]} 39. Ke3 {[%clk 0:00:05]}  Ra6 {[%clk 0:01:01]} 40. Rb2 {[%clk 0:00:04]}  Kxd6 {[%clk 0:01:01]} 41. Rxb5 {[%clk 0:00:04]}  Rxa2 {[%clk 0:01:01]} 42. Rb7 {[%clk 0:00:03]}  f6 {[%clk 0:00:57]} 43. Rxh7 {[%clk 0:00:02]}  Rxg2 {[%clk 0:00:57]} 44. h4 {[%clk 0:00:02]}  Ke5 {[%clk 0:00:55]} 45. Rg7 {[%clk 0:00:02]}  Kf5 {[%clk 0:00:55]} 46. h5 {[%clk 0:00:02]}  g5 {[%clk 0:00:53]} 47. h6 {[%clk 0:00:02]}  Rh2 {[%clk 0:00:53]} 48. h7 {[%clk 0:00:03]}  Rh3 {[%clk 0:00:54]} 49. Kf2 {[%clk 0:00:02]}  Kf4 {[%clk 0:00:53]} 50. Kg2 {[%clk 0:00:03]}  Rh4 {[%clk 0:00:50]} 51. Rg6 {[%clk 0:00:02]}  Kf5 {[%clk 0:00:49]} 52. Rg7 {[%clk 0:00:02]}  Rh6 {[%clk 0:00:49]} 53. Kg3 {[%clk 0:00:02]}  Rh1 {[%clk 0:00:50]} 54. Kg2 {[%clk 0:00:03]}  Rh5 {[%clk 0:00:51]} 55. Kg3 {[%clk 0:00:03]}  Rh6 {[%clk 0:00:51]} 56. Kg2 {[%clk 0:00:03]}  e5 {[%clk 0:00:51]} 57. Kg3 {[%clk 0:00:02]}  Rh5 {[%clk 0:00:52]} 58. Kg2 {[%clk 0:00:03]}  Kf4 {[%clk 0:00:52]} 59. Rxg5 {[%clk 0:00:02]}  Rxg5+ {[%clk 0:00:51]} 0-1


[Site "https://www.chess.com"]